bitfinex-derivatives/quotes_ETHF0:USTF0_20241007
["timestamp","ask_amount","ask_price","bid_price","bid_amount"]
[1728281110148,3.14692358,2488.5,2488.2,0.4046]
[1728281110350,0.4065,2488.4,2488.2,0.4046]
[1728281110537,0.4065,2488.4,2488.3,5.5391123]
[1728281115449,0.4065,2488.4,2488.3,5.8204423]
[1728281115649,0.4065,2488.4,2488.3,6.0546423]
[1728281115949,0.2813,2488.6,2488.3,6.0546423]
[1728281116152,3.82508469,2488.6,2488.5,1.3]
[1728281118944,0.6726,2488.6,2488.5,1.3]
[1728281119453,0.28131,2488.4,2488.3,1.3]
[1728281119650,3.43543502,2488.4,2488.3,1.3]
[1728281119850,4.37160195,2488.5,2488.3,1.3]
[1728281120556,3.15422801,2488.4,2488.3,1.3]
[1728281121251,4.37160195,2488.5,2488.3,1.3]
[1728281121555,3.15430885,2488.4,2488.3,1.3]
[1728281122055,3.15430885,2488.4,2488.3,1.58133]
[1728281123252,3.15430885,2488.4,2488.3,1.3]
[1728281123847,4.37160195,2488.5,2488.3,1.3]
[1728281125350,4.37160195,2488.5,2488.4,1.3]
[1728281125750,8.10869195,2488.5,2488.4,1.3]
[1728281126956,0.4105,2488.5,2488.4,1.3]
[1728281127549,4.4289,2488.5,2488.4,1.3]
[1728281127753,0.4105,2488.5,2488.4,1.3]
[1728281128257,4.4289,2488.5,2488.4,1.3]
[1728281129051,0.4105,2488.5,2488.4,1.3]
[1728281134353,0.6918,2488.5,2488.4,1.3]
[1728281134754,0.6918,2488.5,2488.2,0.4046]
[1728281134956,0.28132,2488.4,2488.2,1.3]
[1728281135266,0.3954,2488.3,2488.2,1.3]
[1728281135465,1.07133,2488.3,2488.2,1.3]
[1728281138164,0.79,2488.3,2488.2,1.3]
[1728281138763,1.07133,2488.3,2488.2,1.3]
[1728281139163,0.79,2488.3,2488.2,1.3]
[1728281140971,1.07133,2488.3,2488.2,1.3]
[1728281142466,1.07133,2488.3,2488.1,0.28135]
[1728281142770,1.07133,2488.3,2488.2,5.77035381]
[1728281143271,0.79,2488.3,2488.2,5.77035381]
[1728281151179,3.67979195,2488.6,2488.3,0.28131]
[1728281151373,3.67979195,2488.6,2488.5,1.3]
[1728281151578,0.409,2488.7,2488.5,1.3]
[1728281151874,0.409,2488.7,2488.6,0.28129]
[1728281152072,0.409,2488.7,2487.9,3.96265936]
[1728281152073,4.0184,2488.6,2487.9,3.96265936]
[1728281152273,4.0184,2488.6,2488.3,1.3]
[1728281152274,0.28131,2488.5,2488.3,1.3]
[1728281152473,0.4186,2488.4,2488.2,4.93710944]
[1728281152669,0.8245,2488.4,2488.3,1.3]
[1728281152874,0.4059,2488.4,2488.3,5.96882219]
[1728281153177,3.2078,2488.5,2488.3,1.58132]
[1728281153377,0.4059,2488.5,2488.4,1.7052]
[1728281153767,4.09419773,2488.5,2488.4,1.7052]
[1728281154372,4.09419773,2488.5,2488.4,1.3]
[1728281154574,0.7902,2488.5,2488.4,1.3]
[1728281156979,0.7902,2488.5,2488.4,1.58131]
[1728281157185,3.95174487,2488.5,2488.4,1.58131]
[1728281160877,3.16154487,2488.5,2488.4,1.58131]
[1728281161080,3.16154487,2488.6,2488.4,1.58131]
[1728281161285,3.57544487,2488.7,2488.5,0.8112]
[1728281161486,3.16154487,2488.9,2488.6,1.3]
[1728281161786,3.16154487,2488.9,2488.8,1.58127]
[1728281162179,3.16154487,2488.9,2488.8,5.78310539]
[1728281165384,3.16154487,2488.9,2488.8,9.80070539]
[1728281166285,3.6217,2489.2,2488.8,9.51943539]
[1728281166478,3.6217,2489.2,2489.1,1.3]
[1728281166678,0.4139,2489.2,2489.1,1.3]
[1728281167178,0.69512,2489.2,2489.1,1.3]
[1728281167679,3.6217,2489.2,2489.1,1.3]
[1728281168076,3.6217,2489.2,2489.1,1.58124]
[1728281168282,3.6217,2489.2,2489.1,1.3]
[1728281168283,0.69512,2489.2,2489.1,1.3]
[1728281168479,3.90292,2489.2,2489.1,1.3]
[1728281169491,3.6217,2489.2,2489.1,1.3]
[1728281170486,3.90292,2489.2,2489.1,1.3]
[1728281170801,3.6217,2489.2,2489.1,1.3]
[1728281171888,3.90292,2489.2,2489.1,1.3]
[1728281172697,3.6217,2489.2,2489.1,1.3]
[1728281173491,3.90292,2489.2,2489.1,1.3]
[1728281175097,3.6217,2489.2,2489.1,1.3]
[1728281177493,3.90292,2489.2,2489.1,1.3]
[1728281178191,3.6217,2489.2,2489.1,1.3]
[1728281178895,3.90292,2489.2,2489.1,1.3]
[1728281179896,3.6217,2489.2,2489.1,1.3]
[1728281180792,3.90292,2489.2,2489.1,1.3]
[1728281186899,0.28127,2488.8,2488.5,0.6753]
[1728281187097,0.4012,2488.7,2488.5,0.4019]
[1728281187397,0.7924,2488.7,2488.6,5.82285294]
[1728281187893,0.4012,2488.7,2488.6,5.82285294]
[1728281188092,0.4012,2488.7,2488.6,6.45125294]
[1728281188298,0.68334,2489.1,2488.7,0.28128]
[1728281188498,0.4218,2489.0,2488.8,1.58127]
[1728281190806,0.28126,2488.9,2488.8,1.3]
[1728281191207,0.70305,2489.0,2488.8,1.3]
[1728281191405,0.4218,2489.0,2488.8,1.58127]
[1728281191605,0.4218,2489.0,2488.9,0.3945]
[1728281192406,0.70305,2489.0,2488.9,0.3945]
[1728281192798,0.4218,2489.0,2488.9,0.3945]
[1728281195014,0.70305,2489.0,2488.9,0.3945]
[1728281195209,0.4218,2489.0,2488.9,0.3945]
[1728281200311,0.70305,2489.0,2488.9,0.3945]
[1728281200513,0.28126,2488.9,2488.8,4.55247084]
[1728281200822,0.70305,2489.0,2488.8,4.55247084]
[1728281202811,0.70305,2489.0,2488.8,4.83374084]
[1728281203109,0.4218,2489.0,2488.8,4.83374084]
[1728281205815,0.70305,2489.0,2488.8,4.83374084]
[1728281206315,0.70305,2489.0,2488.8,4.55247084]
[1728281206511,0.70305,2489.0,2488.8,4.83374084]
[1728281207119,0.4218,2489.0,2488.8,4.83374084]
[1728281208326,3.16310507,2488.9,2488.8,4.83374084]
[1728281208518,3.44436507,2488.9,2488.7,0.28128]
[1728281209422,3.44436507,2488.9,2488.7,1.58128]
[1728281210813,3.16310507,2488.9,2488.7,1.3]
[1728281211013,3.16310507,2488.9,2488.7,1.58128]
[1728281213919,3.44436507,2488.9,2488.7,1.58128]
[1728281214728,3.16310507,2488.9,2488.7,1.58128]
[1728281215629,3.44436507,2488.9,2488.7,1.58128]
[1728281216627,3.16310507,2488.9,2488.7,1.58128]
[1728281218420,3.44436507,2488.9,2488.7,1.58128]
[1728281218720,3.16310507,2488.9,2488.7,1.58128]
[1728281218923,0.3912,2488.8,2488.7,1.58128]
[1728281224628,0.3912,2488.8,2488.7,0.28128]
[1728281226026,0.67247,2488.8,2488.6,0.393]
[1728281226231,0.8235,2488.7,2488.6,0.28129]
[1728281226431,0.8235,2488.7,2488.4,1.6929]
[1728281226725,0.8235,2488.7,2488.6,0.28129]
[1728281227529,0.8235,2488.7,2488.5,0.2813]
[1728281229329,0.8235,2488.7,2488.6,0.28129]
[1728281232033,0.8235,2488.7,2488.5,1.5813]
[1728281232528,0.8235,2488.7,2488.6,0.28129]
[1728281235734,0.8235,2488.7,2488.5,1.3]
[1728281235929,0.8235,2488.7,2488.6,0.28129]
[1728281236434,0.8235,2488.7,2488.5,1.3]
[1728281236634,0.8235,2488.7,2488.5,1.5813]
[1728281241735,3.69028925,2488.9,2488.5,1.3]
[1728281241941,0.3987,2489.0,2488.8,0.28126]
[1728281242247,0.3987,2489.0,2488.7,1.3]
[1728281242248,0.3987,2489.0,2488.9,0.67036]
[1728281243929,3.56217482,2489.0,2488.9,0.67036]
[1728281244536,3.56217482,2489.0,2488.9,0.3891]
[1728281244937,3.84342482,2489.0,2488.9,0.3891]
[1728281245633,0.67995,2489.0,2488.9,0.3891]
[1728281245844,0.3987,2489.0,2488.9,0.3891]
[1728281246038,0.3987,2489.0,2488.9,0.67036]
[1728281246733,0.3987,2489.0,2488.9,0.3891]
[1728281249239,0.67995,2489.0,2488.9,0.3891]
[1728281249435,0.3987,2489.0,2488.9,0.3891]
[1728281251337,0.4029,2489.1,2488.9,1.6891]
[1728281251545,3.5981,2489.3,2489.0,0.67104]
[1728281251934,3.87932,2489.3,2489.0,0.90554]
[1728281253646,3.87932,2489.3,2489.0,0.67104]
[1728281254040,0.67152,2489.3,2489.0,0.67104]
[1728281254240,3.2078,2489.2,2489.0,0.67104]
[1728281256646,3.2078,2489.2,2489.1,1.58124]
[1728281257042,3.2078,2489.2,2489.1,1.3]
[1728281257737,3.2078,2489.2,2489.1,1.58124]
[1728281257943,0.3903,2489.3,2489.2,0.28122]
[1728281258146,11.11099565,2489.6,2489.2,0.28122]
[1728281258147,4.21546603,2489.6,2489.3,0.2812]
[1728281258343,0.4231,2489.5,2489.4,1.7062]
[1728281258542,0.4231,2489.5,2489.4,1.9874]
[1728281259144,0.4231,2489.5,2489.4,1.7062]
[1728281259337,0.4231,2489.5,2489.4,0.4062]
[1728281269052,0.4231,2489.5,2489.3,1.58121]
[1728281269848,0.4231,2489.5,2489.3,1.3]
[1728281270154,0.70429,2489.5,2489.3,1.3]
[1728281273456,0.4231,2489.5,2489.3,1.58121]
[1728281278861,0.4231,2489.5,2489.3,1.3]
[1728281279156,0.4231,2489.5,2489.3,1.58121]
[1728281282365,0.4231,2489.5,2489.4,0.2812]
[1728281286065,0.4231,2489.5,2489.4,1.5812]
[1728281290658,0.4231,2489.5,2489.2,1.6826]
[1728281290965,0.4231,2489.5,2489.4,0.2812]
[1728281297570,1.7231,2489.5,2489.3,4.31850819]
[1728281297765,1.7231,2489.5,2489.3,4.59970819]
[1728281299568,1.7231,2489.5,2489.3,4.59971819]
[1728281300073,2.00429,2489.5,2489.3,4.31850819]
[1728281300573,2.00429,2489.5,2489.3,4.59971819]
[1728281302374,1.7231,2489.5,2489.3,4.59971819]
[1728281303673,1.7231,2489.5,2489.3,4.31850819]
[1728281303870,1.7231,2489.5,2489.3,4.59971819]
[1728281306984,4.88540118,2489.5,2489.3,4.59971819]
[1728281307275,1.7231,2489.5,2489.3,4.59971819]
[1728281307675,4.88540118,2489.5,2489.3,4.59971819]
[1728281308875,3.58540118,2489.5,2489.4,0.2812]
[1728281309069,0.4231,2489.5,2489.4,0.6651]
[1728281311076,0.4231,2489.5,2489.4,0.3839]
[1728281311477,0.4231,2489.5,2489.4,0.6651]
[1728281311872,0.4231,2489.5,2489.4,0.3839]
[1728281312180,0.4231,2489.5,2489.4,0.6651]
[1728281312475,2.00429,2489.5,2489.3,4.31850819]
[1728281312676,1.7231,2489.5,2489.3,4.59971819]
[1728281313382,2.00429,2489.5,2489.3,4.31850819]
[1728281313578,0.3838,2489.4,2489.3,4.31850819]
[1728281314485,3.54610118,2489.4,2489.3,4.31850819]
[1728281315171,3.54610118,2489.4,2489.3,4.72570819]
[1728281315879,3.16230118,2489.4,2489.3,5.63311819]
[1728281316379,3.58540118,2489.5,2489.3,5.63311819]
[1728281317176,3.16230118,2489.4,2489.3,5.63311819]
[1728281317570,0.4231,2489.5,2489.4,0.2812]
[1728281317571,3.58540118,2489.5,2489.4,0.2812]
[1728281318483,3.58536519,2489.5,2489.4,0.2812]
[1728281318779,0.4231,2489.5,2489.4,0.2812]
[1728281319184,3.58536675,2489.5,2489.4,0.2812]
[1728281319481,0.4231,2489.5,2489.4,0.2812]
[1728281319881,3.58539371,2489.5,2489.4,0.2812]
[1728281321380,3.58539371,2489.5,2489.3,5.35190819]
[1728281321381,0.4231,2489.5,2489.3,5.35190819]
[1728281321583,3.58541952,2489.5,2489.4,0.2812]
[1728281322281,3.58541952,2489.5,2489.3,5.63310819]
[1728281322678,3.58541952,2489.5,2489.3,5.39830819]
[1728281323274,0.4231,2489.5,2489.3,5.39830819]
[1728281323480,3.58541952,2489.5,2489.3,5.39830819]
[1728281323682,0.4231,2489.5,2489.3,5.39830819]
[1728281323880,3.98241952,2489.5,2489.3,5.39830819]
[1728281325385,0.8201,2489.5,2489.3,5.11710819]
[1728281325577,0.8201,2489.5,2489.4,0.2812]
[1728281327188,3.16231952,2489.6,2489.5,0.28119]
[1728281327482,3.2078,2489.7,2489.6,0.28118]
[1728281327683,3.2078,2489.7,2489.6,4.69478]
[1728281327878,3.2078,2489.7,2489.6,8.99235594]
[1728281329085,3.16231952,2489.8,2489.7,0.28117]
[1728281329277,0.3914,2490.0,2489.7,1.3]
[1728281329479,3.55371952,2490.0,2489.8,0.28115]
[1728281330087,3.55371952,2490.0,2489.7,6.88252725]
[1728281330281,3.55371952,2490.0,2489.9,0.28114]
[1728281331381,0.3914,2490.0,2489.9,0.28114]
[1728281331885,3.55371952,2490.0,2489.9,0.28114]
[1728281332086,0.3914,2490.0,2489.9,0.28114]
[1728281336093,0.3914,2490.0,2489.9,1.58114]
[1728281342401,0.3914,2490.0,2489.9,10.05910824]
[1728281342792,0.4127,2490.2,2490.1,0.28112]
[1728281342993,0.8229,2490.2,2490.1,0.28112]
[1728281343591,3.2078,2490.3,2490.0,1.3]
[1728281343896,0.3849,2490.4,2490.3,0.2811]
[1728281344094,0.3849,2490.4,2490.3,0.6884]
[1728281344601,0.3849,2490.4,2490.3,1.7264]
[1728281345889,0.3849,2490.4,2490.3,0.6884]
[1728281348997,0.3849,2490.4,2490.0,3.2078]
[1728281348998,3.5927,2490.4,2490.0,3.2078]
[1728281349198,0.28114,2490.0,2489.8,0.995]
[1728281349500,1.2075,2489.9,2489.7,4.24382936]
[1728281349797,1.2075,2489.9,2489.8,4.37577604]
[1728281350606,1.2075,2489.9,2489.8,4.65693604]
[1728281351103,1.2075,2489.9,2489.8,4.37577604]
[1728281352206,1.2075,2489.9,2489.8,5.95693604]
[1728281352896,1.2075,2489.9,2489.8,5.67577604]
[1728281353089,1.2075,2489.9,2489.8,5.95693604]
[1728281355003,1.2075,2489.9,2489.8,5.67577604]
[1728281355202,1.2075,2489.9,2489.8,5.95693604]
[1728281357301,1.2075,2489.9,2489.8,5.67577604]
[1728281357696,1.2075,2489.9,2489.8,5.95693604]
[1728281361105,0.8153,2489.9,2489.8,5.95693604]
[1728281363599,0.3996,2489.9,2489.8,9.97293604]
[1728281364302,0.4078,2490.1,2490.0,0.28113]
[1728281364808,0.4078,2490.1,2490.0,4.83192685]
[1728281367211,0.4078,2490.1,2490.0,4.55079685]
[1728281367609,0.4078,2490.1,2490.0,4.83192685]
[1728281367810,3.2078,2490.4,2490.1,0.28112]
[1728281368107,0.4225,2490.4,2490.3,0.2811]
[1728281368506,0.4225,2490.4,2490.2,1.5811]
[1728281369001,0.4225,2490.4,2490.3,4.80325261]
[1728281369206,0.4225,2490.4,2490.3,5.21795261]
[1728281370211,0.4225,2490.4,2490.3,4.52215261]
[1728281370414,0.70359,2490.4,2490.1,0.995]
[1728281370715,0.70359,2490.4,2490.2,4.20772759]
[1728281371817,0.4225,2490.4,2490.2,4.20772759]
[1728281372513,0.70359,2490.4,2490.2,4.20772759]
[1728281372718,0.4225,2490.4,2490.2,4.20772759]
[1728281375126,0.4225,2490.4,2490.2,4.48883759]
[1728281375424,0.4225,2490.4,2490.2,4.20772759]
[1728281377023,0.4225,2490.4,2490.3,0.6777]
[1728281378907,0.4225,2490.4,2490.3,0.3966]
[1728281385731,0.4225,2490.4,2490.2,4.48883759]
[1728281385934,0.4225,2490.4,2490.2,4.20772759]
[1728281386521,5.21139,2490.4,2490.2,4.20772759]
[1728281386718,8.37370952,2490.4,2490.2,4.20772759]
[1728281387514,8.09261952,2490.4,2490.2,4.20772759]
[1728281387719,8.37370952,2490.4,2490.2,4.20772759]
[1728281388825,5.21139,2490.4,2490.2,4.20772759]
[1728281390628,4.9303,2490.4,2490.2,4.20772759]
[1728281390926,4.9303,2490.4,2490.2,4.48883759]
[1728281391121,5.21139,2490.4,2490.2,4.48883759]
[1728281391721,5.21139,2490.4,2490.2,4.20772759]
[1728281393030,2.00359,2490.4,2490.2,4.20772759]
[1728281393623,2.00359,2490.4,2490.2,0.28111]
[1728281394036,1.7225,2490.4,2490.2,0.28111]
[1728281397640,1.7225,2490.4,2490.0,0.28113]
[1728281397935,1.7225,2490.4,2490.2,0.2811]
[1728281400729,2.00359,2490.4,2490.1,0.28112]
[1728281401139,1.5811,2490.3,2490.0,4.53718951]
[1728281401336,0.39,2490.2,2490.1,0.28112]
[1728281403043,0.39,2490.2,2490.0,4.53718951]
[1728281403242,0.39,2490.2,2490.0,4.81831951]
[1728281403243,0.3886,2490.1,2490.0,4.81831951]
[1728281403734,4.74340952,2490.4,2490.0,5.83718951]
[1728281403937,0.3886,2490.3,2490.2,0.28111]
[1728281404237,0.3886,2490.3,2490.1,0.28112]
[1728281405242,3.55091952,2490.3,2490.1,0.28112]
[1728281408355,3.55091952,2490.3,2490.0,6.35280951]
[1728281408645,3.83201952,2490.3,2490.0,4.81831951]
[1728281409039,3.44342952,2490.2,2490.0,4.53718951]
[1728281409234,0.825,2490.1,2490.0,4.53718951]
[1728281409753,0.825,2490.1,2489.9,0.3905]
[1728281410048,0.4077,2490.0,2489.9,0.67164]
[1728281410243,0.4077,2490.0,2489.9,0.3905]
[1728281410244,3.57001952,2490.0,2489.9,0.3905]
[1728281411549,3.57001952,2490.0,2489.8,0.28115]
[1728281412145,0.4077,2490.0,2489.8,0.28115]
[1728281413339,0.4077,2490.0,2489.7,0.423]
[1728281413538,1.7077,2490.0,2489.7,0.423]
[1728281413752,1.98883,2490.0,2489.8,4.35047282]
[1728281414049,1.7077,2490.0,2489.8,4.35047282]
[1728281415650,0.4077,2490.0,2489.8,4.35047282]
[1728281415846,6.37011952,2490.3,2489.8,5.65047282]
[1728281416034,0.4194,2490.2,2490.1,0.28112]
[1728281416235,0.4194,2490.2,2490.1,0.68922]
[1728281419149,0.4194,2490.2,2490.1,0.4081]
[1728281421048,0.4194,2490.2,2490.1,0.68922]
[1728281421851,0.4194,2490.2,2490.1,0.4081]
[1728281423156,0.404,2490.3,2490.0,1.3]
[1728281423360,0.404,2490.3,2490.2,0.28111]
[1728281423857,0.404,2490.3,2490.1,0.3992]
[1728281424046,0.3942,2490.4,2490.2,1.58111]
[1728281424247,0.3965,2490.5,2490.2,5.8909276]
[1728281424952,1.3,2490.3,2489.7,1.05306197]
[1728281425152,1.3,2489.9,2489.6,6.11871953]
[1728281425456,0.8037,2489.8,2489.7,4.6554148]
[1728281426159,0.8037,2489.8,2489.7,4.9365848]
[1728281426348,0.8037,2489.8,2489.7,4.6554148]
[1728281436267,1.08486,2489.8,2489.7,4.6554148]
[1728281436564,1.47786,2489.8,2489.7,4.6554148]
[1728281437163,2.4967,2489.8,2489.6,4.85554953]
[1728281437362,1.58117,2489.7,2489.6,4.85554953]
[1728281437757,5.59797,2489.7,2489.6,4.85554953]
[1728281438158,8.76028952,2489.7,2489.6,4.85554953]
[1728281439271,5.59797,2489.7,2489.6,4.85554953]
[1728281440362,1.58117,2489.7,2489.6,4.85554953]
[1728281440566,5.59797,2489.7,2489.6,4.85554953]
[1728281442165,8.76028952,2489.7,2489.6,4.85554953]
[1728281442967,5.59797,2489.7,2489.6,4.85554953]
[1728281443869,0.28119,2489.6,2489.2,0.28122]
[1728281444063,1.58119,2489.5,2489.2,0.28122]
[1728281444267,0.8269,2489.4,2489.3,4.44979522]
[1728281453072,0.4069,2489.4,2489.3,4.44979522]
[1728281453567,0.6881,2489.4,2489.3,4.44979522]
[1728281454079,1.9881,2489.4,2489.1,0.66443]
[1728281454372,1.9881,2489.4,2489.2,4.66299501]
[1728281454572,0.28121,2489.3,2489.2,4.66299501]
[1728281454774,0.28121,2489.3,2489.1,0.3832]
[1728281455073,1.7141,2489.2,2489.1,0.3832]
[1728281455470,1.7141,2489.2,2489.1,0.66444]
[1728281455471,0.4141,2489.2,2489.1,0.66444]
[1728281459781,0.4141,2489.2,2489.1,0.3832]
[1728281466082,0.4141,2489.2,2489.1,0.66444]
[1728281467472,0.4141,2489.2,2489.1,0.3832]
[1728281470574,0.4141,2489.2,2489.1,0.66444]
[1728281475475,1.3,2489.3,2489.1,0.66444]
[1728281475782,1.3,2489.3,2489.1,5.30095324]
[1728281489797,3.99121952,2489.4,2489.1,5.01971324]
[1728281490095,0.8289,2489.4,2489.1,5.01971324]
[1728281490291,0.8289,2489.4,2489.1,5.30093324]
[1728281490489,0.8289,2489.4,2489.2,0.28122]
[1728281491295,3.99121952,2489.4,2489.2,0.28122]
[1728281491590,4.27241952,2489.4,2489.1,5.30094324]
[1728281491799,3.99121952,2489.4,2489.1,5.01971324]
[1728281491989,4.27241952,2489.4,2489.1,5.30093324]
[1728281492190,3.99121952,2489.4,2489.2,0.28122]
[1728281495189,3.99121952,2489.4,2489.1,5.01971324]
[1728281495790,3.44353952,2489.3,2489.1,5.01971324]
[1728281496390,0.3902,2489.2,2489.1,5.01971324]
[1728281496897,0.3902,2489.2,2489.1,5.30095324]
[1728281499297,3.55251952,2489.2,2489.1,5.30095324]
[1728281500402,0.3902,2489.2,2489.1,5.30095324]
[1728281500598,0.3902,2489.2,2489.1,5.01971324]
[1728281502005,0.3902,2489.2,2489.1,5.30095324]
[1728281502595,0.3902,2489.2,2489.1,5.01971324]
[1728281503501,0.3902,2489.2,2489.1,5.30095324]
[1728281504002,1.6902,2489.2,2489.1,4.63651324]
[1728281505907,1.6902,2489.2,2489.0,0.28124]
[1728281506207,0.818,2489.1,2489.0,0.28124]
[1728281506703,0.818,2489.1,2488.9,0.3866]
[1728281506902,0.818,2489.1,2488.9,0.66785]
[1728281507097,0.818,2489.1,2489.0,4.18090412]
[1728281507507,0.818,2489.1,2489.0,9.18090412]
[1728281510010,0.818,2489.1,2489.0,5.0]
[1728281513511,1.09924,2489.1,2489.0,5.0]
[1728281513712,4.26155952,2489.1,2489.0,5.0]
[1728281515513,3.98031952,2489.1,2489.0,5.0]
[1728281517513,0.818,2489.1,2489.0,5.0]
[1728281518413,3.98031952,2489.1,2489.0,5.0]
[1728281518809,0.818,2489.1,2489.0,5.0]
[1728281519310,3.98031952,2489.1,2489.0,5.0]
[1728281519507,0.818,2489.1,2489.0,5.0]
[1728281521006,0.818,2489.1,2489.0,5.28125]
[1728281521811,0.418,2489.1,2489.0,5.67795]
[1728281523210,6.37011952,2489.3,2489.2,0.28122]
[1728281523408,3.16231952,2489.4,2489.3,0.28121]
[1728281523710,0.374,2489.8,2489.6,0.28117]
[1728281523909,3.59431952,2489.9,2489.8,0.28116]
[1728281523910,0.3833,2489.9,2489.8,0.28116]
[1728281524105,0.3833,2490.1,2489.9,0.28114]
[1728281524305,1.6833,2490.2,2490.0,0.28113]
[1728281524504,1.6833,2490.2,2490.1,0.4241]
[1728281526717,2.0724,2490.2,2489.8,0.28115]
[1728281526922,1.3,2490.0,2489.8,0.28115]
[1728281527118,1.3,2490.0,2489.9,4.30675462]
[1728281527424,1.6993,2490.0,2489.9,4.30675462]
[1728281529318,1.6993,2490.0,2489.9,4.58789462]
[1728281530313,1.6833,2490.2,2489.9,4.58789462]
[1728281533234,1.6833,2490.2,2489.9,5.00039462]
[1728281534137,1.96442,2490.2,2489.9,4.71925462]
[1728281534436,1.6833,2490.2,2489.9,4.71925462]
[1728281534639,1.6833,2490.2,2489.9,5.23539462]
[1728281537742,0.3833,2490.2,2489.9,5.23539462]
[1728281538040,1.6833,2490.2,2489.9,5.23539462]
[1728281538241,1.6833,2490.2,2489.9,4.95425462]
[1728281538435,1.96442,2490.2,2489.9,5.23539462]
[1728281538944,1.6833,2490.2,2489.9,5.23539462]
[1728281546544,0.3833,2490.2,2489.9,4.95425462]
[1728281546846,0.374,2490.5,2490.4,0.28109]
[1728281547041,0.4212,2490.5,2490.4,0.28109]
[1728281548249,0.4212,2490.5,2490.3,0.4234]
[1728281548449,0.4212,2490.5,2490.4,0.28109]
[1728281549047,0.4212,2490.5,2490.3,0.70449]
[1728281549243,0.4212,2490.5,2490.3,0.4234]
[1728281549449,0.4212,2490.5,2490.3,0.70449]
[1728281550548,0.4212,2490.5,2490.4,0.28109]
[1728281550854,0.4212,2490.5,2490.3,0.4234]
[1728281551049,0.4212,2490.5,2490.3,0.70449]
[1728281552352,0.4212,2490.5,2490.4,0.28109]
[1728281552553,0.4212,2490.5,2490.3,0.70449]
[1728281553055,0.4212,2490.5,2490.4,0.28109]
[1728281555547,4.9308,2490.7,2490.5,0.28107]
[1728281557753,5.21186,2490.7,2490.4,4.63483638]
[1728281558252,0.3968,2490.6,2490.4,4.63483638]
[1728281559659,0.3968,2490.6,2490.4,4.63484638]
[1728281559957,0.3968,2490.6,2490.4,4.35375638]
[1728281560155,0.3968,2490.6,2490.4,4.63484638]
[1728281560156,0.8167,2490.6,2490.4,4.63484638]
[1728281561451,0.8167,2490.6,2490.4,4.35375638]
[1728281561652,0.3968,2490.6,2490.4,4.35375638]
[1728281561852,0.3968,2490.6,2490.5,0.28108]
[1728281562655,0.3968,2490.6,2490.4,4.35375638]
[1728281562959,0.3968,2490.6,2490.4,4.63483638]
[1728281563160,0.3968,2490.6,2490.4,4.35375638]
[1728281563356,0.3968,2490.6,2490.5,0.28108]
[1728281563662,3.6277,2491.0,2490.5,1.3]
[1728281563860,3.6277,2491.0,2490.6,0.70096]
[1728281563861,0.69194,2490.9,2490.6,0.70096]
[1728281564664,0.28105,2490.8,2490.5,4.34152715]
[1728281564863,1.7109,2490.9,2490.5,4.34152715]
[1728281565159,1.58106,2490.7,2490.5,4.34152715]
[1728281565360,0.3871,2490.6,2490.5,4.34152715]
[1728281565558,1.1937,2490.6,2490.4,0.4199]
[1728281565865,1.1937,2490.6,2490.5,4.53578816]
[1728281568760,1.1937,2490.6,2490.4,1.7199]
[1728281570767,1.1937,2490.6,2490.4,0.4199]
[1728281571456,6.35670175,2490.9,2490.4,0.4199]
[1728281571663,3.42993175,2491.0,2490.7,0.28105]
[1728281571865,3.42993175,2491.0,2490.6,1.3]
[1728281571866,0.3997,2490.9,2490.6,1.3]
[1728281572062,1.6997,2490.9,2490.5,0.28108]
[1728281572257,0.67114,2490.8,2490.5,0.28108]
[1728281572457,0.3901,2490.8,2490.5,0.28108]
[1728281572860,0.3901,2490.8,2490.6,0.28106]
[1728281577665,1.97115,2490.8,2490.5,4.75785334]
[1728281577870,1.6901,2490.8,2490.4,1.3989]
[1728281578072,1.97115,2490.8,2490.5,0.28108]
[1728281581466,1.6901,2490.8,2490.4,0.4199]
[1728281581667,1.6901,2490.8,2490.5,0.28108]
[1728281581668,1.97115,2490.8,2490.5,0.28108]
[1728281581978,1.97114,2490.8,2490.5,0.28108]
[1728281582893,0.67115,2490.8,2490.5,0.28107]
[1728281583475,0.3901,2490.8,2490.4,0.4199]
[1728281583672,0.3901,2490.8,2490.6,0.28107]
[1728281585173,3.53900175,2490.8,2490.5,4.57927488]
[1728281585376,0.3901,2490.8,2490.6,0.28106]
[1728281587866,0.3901,2490.8,2490.7,4.54989811]
[1728281590373,3.53900175,2490.8,2490.7,4.54989811]
[1728281590579,0.3901,2490.8,2490.7,4.54989811]
[1728281590785,3.53900175,2490.8,2490.7,4.54989811]
[1728281591080,0.3901,2490.8,2490.7,4.54989811]
[1728281591276,3.53900175,2490.8,2490.7,4.54989811]
[1728281592882,0.3901,2490.8,2490.7,4.83094811]
[1728281595592,0.3901,2490.8,2490.5,1.7165]
[1728281595593,1.6901,2490.8,2490.5,0.4165]
[1728281595779,1.6901,2490.8,2490.5,0.28107]
[1728281595976,5.12005175,2490.8,2490.6,4.38844253]
[1728281596177,5.12005175,2490.8,2490.4,1.3979]
[1728281596178,0.28106,2490.7,2490.4,1.67898]
[1728281596578,0.67907,2490.6,2490.5,4.37183905]
[1728281596789,0.67907,2490.6,2490.4,0.70098]
[1728281596984,0.8019,2490.5,2490.4,0.70098]
[1728281597682,0.8019,2490.5,2490.4,0.28108]
[1728281609492,3.14890175,2490.7,2490.6,0.28107]
[1728281609695,3.53180175,2490.8,2490.7,0.28105]
[1728281613099,0.3829,2490.8,2490.7,0.28105]
[1728281613295,3.53180175,2490.8,2490.7,0.28105]
[1728281613495,0.3829,2490.8,2490.7,0.28105]
[1728281613694,0.3829,2490.8,2490.7,1.58105]
[1728281614401,3.55210175,2491.0,2490.8,0.28104]
[1728281614596,3.95270175,2491.0,2490.8,0.28104]